[Event "*** MasterClass Titled Tuesday Blitz"]
[Site "Chess.com"]
[Date "2017.12.12"]
[Round "5"]
[White "wonderfultime"]
[Black "Sam_ChessMood"]
[Result "1-0"]
[WhiteElo "2715"]
[BlackElo "2611"]
[TimeControl "180+2"]
[EndTime "14:08:55 PST"]
[Termination "wonderfultime won by checkmate"]

1. d4 {[%clk 0:03:01.9]} 1... d5 {[%clk 0:03:00.3]} 2. Bf4 {[%clk 0:02:54.7]}
2... Nf6 {[%clk 0:02:40.9]} 3. e3 {[%clk 0:02:54.5]} 3... c5 {[%clk 0:02:41.7]}
4. c3 {[%clk 0:02:53.7]} 4... Nc6 {[%clk 0:02:42]} 5. Nd2 {[%clk 0:02:54]} 5...
e6 {[%clk 0:02:41.7]} 6. Ngf3 {[%clk 0:02:54.3]} 6... Bd6 {[%clk 0:02:41.7]} 7.
Bg3 {[%clk 0:02:55.7]} 7... O-O {[%clk 0:02:42.1]} 8. Bb5 {[%clk 0:02:55.5]}
8... Qe7 {[%clk 0:02:43.3]} 9. O-O {[%clk 0:02:56]} 9... Bd7 {[%clk 0:02:23.7]}
10. Bxc6 {[%clk 0:02:45.5]} 10... Bxc6 {[%clk 0:02:24.7]} 11. Ne5 {[%clk
0:02:46.7]} 11... Nd7 {[%clk 0:02:23.9]} 12. Ndf3 {[%clk 0:01:19.5]} 12... Bb5
{[%clk 0:02:00.7]} 13. Re1 {[%clk 0:01:20.1]} 13... Nf6 {[%clk 0:01:43.8]} 14.
Bh4 {[%clk 0:01:19.8]} 14... Qc7 {[%clk 0:01:42.8]} 15. Qb3 {[%clk 0:00:59.7]}
15... Ba6 {[%clk 0:01:27.8]} 16. Qc2 {[%clk 0:00:44.7]} 16... Ne4 {[%clk
0:01:27.1]} 17. Rad1 {[%clk 0:00:42.9]} 17... Rac8 {[%clk 0:01:22.1]} 18. Nd3
{[%clk 0:00:42.3]} 18... Bxd3 {[%clk 0:01:17.1]} 19. Qxd3 {[%clk 0:00:41.8]}
19... c4 {[%clk 0:01:11.1]} 20. Qc2 {[%clk 0:00:40]} 20... b5 {[%clk 0:01:12.2]}
21. a3 {[%clk 0:00:41.4]} 21... a5 {[%clk 0:01:12.8]} 22. Bg3 {[%clk 0:00:42.8]}
22... h6 {[%clk 0:00:50]} 23. Bxd6 {[%clk 0:00:39.6]} 23... Qxd6 {[%clk
0:00:50.5]} 24. Ne5 {[%clk 0:00:39.7]} 24... b4 {[%clk 0:00:48.1]} 25. axb4
{[%clk 0:00:40.7]} 25... axb4 {[%clk 0:00:49]} 26. f3 {[%clk 0:00:42.3]} 26...
b3 {[%clk 0:00:48.4]} 27. Qe2 {[%clk 0:00:41.6]} 27... Nf6 {[%clk 0:00:48.9]}
28. e4 {[%clk 0:00:42.1]} 28... Nd7 {[%clk 0:00:47.1]} 29. Ng4 {[%clk 0:00:43]}
29... Ra8 {[%clk 0:00:44.6]} 30. Ne3 {[%clk 0:00:35.5]} 30... Nb6 {[%clk
0:00:40.8]} 31. e5 {[%clk 0:00:34.5]} 31... Qe7 {[%clk 0:00:39.9]} 32. f4 {[%clk
0:00:36.4]} 32... Ra2 {[%clk 0:00:39.6]} 33. Rd2 {[%clk 0:00:36.5]} 33... Rfa8
{[%clk 0:00:37.5]} 34. Rf1 {[%clk 0:00:25.6]} 34... Ra1 {[%clk 0:00:37.7]} 35.
g3 {[%clk 0:00:27.1]} 35... Rxf1+ {[%clk 0:00:37.1]} 36. Kxf1 {[%clk 0:00:28.7]}
36... Ra2 {[%clk 0:00:37.5]} 37. Kg2 {[%clk 0:00:28.9]} 37... Na4 {[%clk
0:00:37]} 38. h4 {[%clk 0:00:28.1]} 38... h5 {[%clk 0:00:36.4]} 39. f5 {[%clk
0:00:27.3]} 39... exf5 {[%clk 0:00:32]} 40. Nxf5 {[%clk 0:00:29.2]} 40... Qe6
{[%clk 0:00:32.5]} 41. Ne3 {[%clk 0:00:26.3]} 41... g6 {[%clk 0:00:12.3]} 42.
Qf2 {[%clk 0:00:22.1]} 42... Kg7 {[%clk 0:00:13.2]} 43. Nd1 {[%clk 0:00:21]}
43... Ra1 {[%clk 0:00:11.7]} 44. Qf4 {[%clk 0:00:18.1]} 44... Qf5 {[%clk
0:00:12.4]} 45. Qxf5 {[%clk 0:00:18.7]} 45... gxf5 {[%clk 0:00:13.6]} 46. Ne3
{[%clk 0:00:20.6]} 46... Rb1 {[%clk 0:00:13.8]} 47. Nd1 {[%clk 0:00:16.9]} 47...
Rc1 {[%clk 0:00:14.1]} 48. Kf2 {[%clk 0:00:17.4]} 48... Rc2 {[%clk 0:00:13.3]}
49. Ke1 {[%clk 0:00:18.1]} 49... Nxb2 {[%clk 0:00:10.2]} 50. Nxb2 {[%clk
0:00:19.1]} 50... Rxc3 {[%clk 0:00:11.6]} 51. Nd1 {[%clk 0:00:13]} 51... Rxg3
{[%clk 0:00:12.2]} 52. Kf2 {[%clk 0:00:13]} 52... Rh3 {[%clk 0:00:11.3]} 53. Kg2
{[%clk 0:00:14.3]} 53... Rxh4 {[%clk 0:00:07.6]} 54. Nc3 {[%clk 0:00:15.3]}
54... Rg4+ {[%clk 0:00:07.3]} 55. Kf3 {[%clk 0:00:16.3]} 55... h4 {[%clk
0:00:07.9]} 56. Nxd5 {[%clk 0:00:17.7]} 56... h3 {[%clk 0:00:09.4]} 57. Ne3
{[%clk 0:00:17.9]} 57... c3 {[%clk 0:00:09.4]} 58. Rh2 {[%clk 0:00:18.8]} 58...
b2 {[%clk 0:00:07.9]} 59. Rh1 {[%clk 0:00:19.4]} 59... Kg6 {[%clk 0:00:07]} 60.
d5 {[%clk 0:00:11.8]} 60... Rb4 {[%clk 0:00:07.4]} 61. Rb1 {[%clk 0:00:12]}
61... Rd4 {[%clk 0:00:06.8]} 62. d6 {[%clk 0:00:13]} 62... f6 {[%clk 0:00:03.9]}
63. Rg1+ {[%clk 0:00:09.9]} 63... Kf7 {[%clk 0:00:03.9]} 64. Nxf5 {[%clk
0:00:11.4]} 64... Rd3+ {[%clk 0:00:04.4]} 65. Ke4 {[%clk 0:00:12]} 65... c2
{[%clk 0:00:05.7]} 66. Rg7+ {[%clk 0:00:12.8]} 66... Kf8 {[%clk 0:00:07]} 67. e6
{[%clk 0:00:13.8]} 67... b1=Q {[%clk 0:00:06.6]} 68. e7+ {[%clk 0:00:15.3]}
68... Ke8 {[%clk 0:00:08.1]} 69. Rg8+ {[%clk 0:00:16.9]} 69... Kd7 {[%clk
0:00:09.7]} 70. e8=Q# {[%clk 0:00:18.8]} 1-0

[Event "*** MasterClass Titled Tuesday Blitz"]
[Site "Chess.com"]
[Date "2017.12.12"]
[Round "5"]
[White "Kawhi_Leonard2"]
[Black "arna"]
[Result "1/2-1/2"]
[WhiteElo "2265"]
[BlackElo "2164"]
[TimeControl "180+2"]
[EndTime "14:09:26 PST"]
[Termination "Game drawn by repetition"]

1. e4 {[%clk 0:03:01.9]} 1... c5 {[%clk 0:02:53.9]} 2. Nf3 {[%clk 0:03:02.3]}
2... Nc6 {[%clk 0:02:49.9]} 3. d4 {[%clk 0:03:03.7]} 3... cxd4 {[%clk
0:02:50.7]} 4. Nxd4 {[%clk 0:03:05.4]} 4... e5 {[%clk 0:02:52.2]} 5. Nb5 {[%clk
0:03:05.7]} 5... d6 {[%clk 0:02:53.5]} 6. N1c3 {[%clk 0:03:05.3]} 6... a6 {[%clk
0:02:53.2]} 7. Na3 {[%clk 0:03:06.3]} 7... Be7 {[%clk 0:02:54.7]} 8. Nd5 {[%clk
0:03:06.8]} 8... Nf6 {[%clk 0:02:54.5]} 9. Nxf6+ {[%clk 0:02:57.9]} 9... Bxf6
{[%clk 0:02:54.5]} 10. Nc4 {[%clk 0:02:58.9]} 10... Be7 {[%clk 0:02:31.9]} 11.
Be3 {[%clk 0:02:59.1]} 11... b5 {[%clk 0:02:20.5]} 12. Nb6 {[%clk 0:02:59.6]}
12... Rb8 {[%clk 0:02:20.8]} 13. Nd5 {[%clk 0:02:49.9]} 13... O-O {[%clk
0:02:09.9]} 14. Be2 {[%clk 0:02:47.9]} 14... Bg5 {[%clk 0:01:47.4]} 15. O-O
{[%clk 0:02:31.8]} 15... Bxe3 {[%clk 0:01:32.5]} 16. Nxe3 {[%clk 0:02:33.7]}
16... Be6 {[%clk 0:01:25.9]} 17. c3 {[%clk 0:02:29.2]} 17... Ne7 {[%clk
0:01:13.6]} 18. Bf3 {[%clk 0:02:18.7]} 18... Qc7 {[%clk 0:01:08.9]} 19. Qd2
{[%clk 0:02:19]} 19... Rfd8 {[%clk 0:01:07.4]} 20. Rfd1 {[%clk 0:02:19.4]} 20...
g6 {[%clk 0:00:56.6]} 21. a4 {[%clk 0:02:18.8]} 21... bxa4 {[%clk 0:00:40.6]}
22. Nd5 {[%clk 0:02:12.8]} 22... Nxd5 {[%clk 0:00:34.6]} 23. exd5 {[%clk
0:02:13.8]} 23... Bd7 {[%clk 0:00:32.8]} 24. Be2 {[%clk 0:01:56.4]} 24... Qb6
{[%clk 0:00:20.6]} 25. Ra2 {[%clk 0:01:51.9]} 25... Kg7 {[%clk 0:00:19.2]} 26.
Rda1 {[%clk 0:01:51.1]} 26... a5 {[%clk 0:00:19]} 27. Bd1 {[%clk 0:01:50.7]}
27... Rdc8 {[%clk 0:00:16.9]} 28. g3 {[%clk 0:01:40.5]} 28... Rc5 {[%clk
0:00:16.9]} 29. Bxa4 {[%clk 0:01:37.5]} 29... Bxa4 {[%clk 0:00:14.9]} 30. Rxa4
{[%clk 0:01:38.4]} 30... Qxb2 {[%clk 0:00:16.1]} 31. Qxb2 {[%clk 0:01:30.4]}
31... Rxb2 {[%clk 0:00:18]} 32. c4 {[%clk 0:01:19.9]} 32... Rc2 {[%clk
0:00:14.8]} 33. Rxa5 {[%clk 0:01:20.4]} 33... R2xc4 {[%clk 0:00:15.1]} 34. Rxc5
{[%clk 0:01:18.7]} 34... Rxc5 {[%clk 0:00:16.3]} 35. Rd1 {[%clk 0:01:18.2]}
35... e4 {[%clk 0:00:11.5]} 36. Rd4 {[%clk 0:01:00]} 36... f5 {[%clk 0:00:12]}
37. Kg2 {[%clk 0:00:50.7]} 37... Kf6 {[%clk 0:00:11.8]} 38. f4 {[%clk
0:00:51.8]} 38... exf3+ {[%clk 0:00:09.6]} 39. Kxf3 {[%clk 0:00:53]} 39... Ke5
{[%clk 0:00:11.3]} 40. Ra4 {[%clk 0:00:47.9]} 40... Rc3+ {[%clk 0:00:09.4]} 41.
Kf2 {[%clk 0:00:38.5]} 41... h5 {[%clk 0:00:06.8]} 42. h4 {[%clk 0:00:38.7]}
42... Rd3 {[%clk 0:00:06.5]} 43. Ra8 {[%clk 0:00:38.8]} 43... Rxd5 {[%clk
0:00:06.9]} 44. Rg8 {[%clk 0:00:39.8]} 44... Kf6 {[%clk 0:00:07.9]} 45. Rf8+
{[%clk 0:00:40.9]} 45... Ke7 {[%clk 0:00:07.7]} 46. Rg8 {[%clk 0:00:40.7]} 46...
Kf7 {[%clk 0:00:08.9]} 47. Rd8 {[%clk 0:00:41.8]} 47... Ke7 {[%clk 0:00:06.4]}
48. Rg8 {[%clk 0:00:41.7]} 48... Kf7 {[%clk 0:00:07]} 49. Ra8 {[%clk 0:00:41.8]}
49... Rd1 {[%clk 0:00:06.6]} 50. Ra7+ {[%clk 0:00:36.7]} 50... Kf6 {[%clk
0:00:07.1]} 51. Ra6 {[%clk 0:00:37.5]} 51... Ke5 {[%clk 0:00:06.8]} 52. Ra5+
{[%clk 0:00:37.9]} 52... d5 {[%clk 0:00:06.8]} 53. Ra6 {[%clk 0:00:39]} 53...
Rd2+ {[%clk 0:00:04]} 54. Ke3 {[%clk 0:00:37.8]} 54... Rg2 {[%clk 0:00:03.5]}
55. Kf3 {[%clk 0:00:39.1]} 55... Rb2 {[%clk 0:00:03.6]} 56. Rxg6 {[%clk
0:00:39.7]} 56... Rb3+ {[%clk 0:00:05]} 57. Kf2 {[%clk 0:00:40.5]} 57... Ke4
{[%clk 0:00:05.9]} 58. Re6+ {[%clk 0:00:37.7]} 58... Kd4 {[%clk 0:00:05.5]} 59.
Rh6 {[%clk 0:00:36.9]} 59... Ke4 {[%clk 0:00:05.3]} 60. Re6+ {[%clk 0:00:37.1]}
60... Kd4 {[%clk 0:00:06.6]} 61. Rh6 {[%clk 0:00:38.3]} 61... Rb2+ {[%clk
0:00:04]} 62. Kf3 {[%clk 0:00:39]} 62... Rb3+ {[%clk 0:00:04.5]} 63. Kf4 {[%clk
0:00:40.2]} 63... Kc3 {[%clk 0:00:05]} 64. Rxh5 {[%clk 0:00:36.9]} 64... d4
{[%clk 0:00:04.4]} 65. Rxf5 {[%clk 0:00:37.7]} 65... d3 {[%clk 0:00:05.8]} 66.
Rd5 {[%clk 0:00:38.7]} 66... Rb1 {[%clk 0:00:03.5]} 67. h5 {[%clk 0:00:38.9]}
67... d2 {[%clk 0:00:04.2]} 68. g4 {[%clk 0:00:30.1]} 68... Rf1+ {[%clk
0:00:03.1]} 69. Kg5 {[%clk 0:00:28.4]} 69... d1=Q {[%clk 0:00:02.8]} 70. Rxd1
{[%clk 0:00:28.7]} 70... Rxd1 {[%clk 0:00:04.7]} 71. h6 {[%clk 0:00:29.8]} 71...
Rh1 {[%clk 0:00:04.2]} 72. Kg6 {[%clk 0:00:30.4]} 72... Kd4 {[%clk 0:00:05.7]}
73. g5 {[%clk 0:00:31.4]} 73... Ke5 {[%clk 0:00:07.3]} 74. Kg7 {[%clk
0:00:32.8]} 74... Kf5 {[%clk 0:00:08.4]} 75. g6 {[%clk 0:00:31.4]} 75... Kg5
{[%clk 0:00:08.7]} 76. h7 {[%clk 0:00:32.2]} 76... Rh2 {[%clk 0:00:08.9]} 77.
Kf7 {[%clk 0:00:33.1]} 77... Rh1 {[%clk 0:00:04.9]} 78. Kg7 {[%clk 0:00:29.7]}
78... Rh6 {[%clk 0:00:03.6]} 79. Kf7 {[%clk 0:00:28.8]} 79... Rh1 {[%clk
0:00:04.7]} 80. Kg7 {[%clk 0:00:29]} 80... Rh6 {[%clk 0:00:05.4]} 81. Kf7 {[%clk
0:00:30.2]} 81... Rh1 {[%clk 0:00:06.1]} 1/2-1/2

[Event "*** MasterClass Titled Tuesday Blitz"]
[Site "Chess.com"]
[Date "2017.12.12"]
[Round "5"]
[White "lukas_111111"]
[Black "Kacparov"]
[Result "1/2-1/2"]
[WhiteElo "2455"]
[BlackElo "2578"]
[TimeControl "180+2"]
[EndTime "14:09:44 PST"]
[Termination "Game drawn by agreement"]

1. e4 {[%clk 0:03:01.9]} 1... c5 {[%clk 0:02:52.7]} 2. Nf3 {[%clk 0:03:02.5]}
2... e6 {[%clk 0:02:53.5]} 3. d4 {[%clk 0:03:01.5]} 3... cxd4 {[%clk 0:02:55.4]}
4. Nxd4 {[%clk 0:03:01.5]} 4... Nf6 {[%clk 0:02:54.5]} 5. Nc3 {[%clk 0:03:02.4]}
5... d6 {[%clk 0:02:55.5]} 6. g4 {[%clk 0:03:00.9]} 6... a6 {[%clk 0:02:56.3]}
7. g5 {[%clk 0:03:01.5]} 7... Nfd7 {[%clk 0:02:57.6]} 8. Be3 {[%clk 0:02:59.1]}
8... Nc6 {[%clk 0:02:58.3]} 9. h4 {[%clk 0:02:58.6]} 9... Qc7 {[%clk 0:02:59.1]}
10. h5 {[%clk 0:02:57.6]} 10... Nde5 {[%clk 0:02:59.8]} 11. Be2 {[%clk
0:02:53.2]} 11... b5 {[%clk 0:02:54.4]} 12. a3 {[%clk 0:02:48.8]} 12... Bb7
{[%clk 0:02:54.5]} 13. Nxc6 {[%clk 0:02:40.4]} 13... Qxc6 {[%clk 0:02:54.4]} 14.
Qd4 {[%clk 0:02:33.9]} 14... Nc4 {[%clk 0:02:44.1]} 15. Bxc4 {[%clk 0:02:29.8]}
15... Qxc4 {[%clk 0:02:46]} 16. O-O-O {[%clk 0:02:09.5]} 16... Qxd4 {[%clk
0:02:42.2]} 17. Bxd4 {[%clk 0:02:08.6]} 17... h6 {[%clk 0:02:42.7]} 18. f4
{[%clk 0:01:57.4]} 18... e5 {[%clk 0:02:24.7]} 19. fxe5 {[%clk 0:01:56.9]} 19...
dxe5 {[%clk 0:02:26.6]} 20. Bxe5 {[%clk 0:01:53.3]} 20... hxg5 {[%clk
0:02:27.7]} 21. Nd5 {[%clk 0:01:48.6]} 21... Bxd5 {[%clk 0:02:25.2]} 22. exd5
{[%clk 0:01:35.1]} 22... f6 {[%clk 0:02:25.8]} 23. Bg3 {[%clk 0:01:24.5]} 23...
Kd7 {[%clk 0:02:26.9]} 24. d6 {[%clk 0:01:15.6]} 24... Rc8 {[%clk 0:02:27.2]}
25. b3 {[%clk 0:00:47.8]} 25... Rc6 {[%clk 0:02:25.1]} 26. Rh2 {[%clk
0:00:46.9]} 26... f5 {[%clk 0:02:01]} 27. Be5 {[%clk 0:00:44.5]} 27... Rh6
{[%clk 0:01:58.6]} 28. Re2 {[%clk 0:00:35.3]} 28... Re6 {[%clk 0:01:51.9]} 29.
Rd5 {[%clk 0:00:21.8]} 29... f4 {[%clk 0:01:50.4]} 30. Rg2 {[%clk 0:00:17.7]}
30... Bxd6 {[%clk 0:00:53.7]} 31. Rxg5 {[%clk 0:00:17.7]} 31... Rc5 {[%clk
0:00:54.8]} 32. Rxg7+ {[%clk 0:00:17.5]} 32... Kc6 {[%clk 0:00:55.7]} 33. Rxd6+
{[%clk 0:00:10.6]} 33... Rxd6 {[%clk 0:00:56.3]} 34. Bxd6 {[%clk 0:00:11.9]}
34... Kxd6 {[%clk 0:00:57.7]} 35. Rf7 {[%clk 0:00:10.5]} 35... Rxh5 {[%clk
0:00:57.5]} 36. Rxf4 {[%clk 0:00:11.2]} 36... Rh6 {[%clk 0:00:54.2]} 37. Kb2
{[%clk 0:00:11.8]} 37... Kc5 {[%clk 0:00:55.4]} 38. Rf5+ {[%clk 0:00:12.5]}
38... Kb6 {[%clk 0:00:56.5]} 39. Kc3 {[%clk 0:00:13.6]} 39... Rc6+ {[%clk
0:00:57.7]} 40. Kb2 {[%clk 0:00:14.4]} 40... a5 {[%clk 0:00:58.4]} 41. Rg5
{[%clk 0:00:14.4]} 41... Rd6 {[%clk 0:00:58]} 42. Rg4 {[%clk 0:00:12.6]} 42...
Re6 {[%clk 0:00:59.1]} 43. Rg5 {[%clk 0:00:12.8]} 43... Rh6 {[%clk 0:00:59.3]}
44. Rd5 {[%clk 0:00:13.3]} 44... Rg6 {[%clk 0:01:00.2]} 45. Rd4 {[%clk
0:00:11.7]} 45... Rh6 {[%clk 0:01:01.3]} 46. c4 {[%clk 0:00:07.9]} 46... bxc4
{[%clk 0:01:00.7]} 47. Rxc4 {[%clk 0:00:08.6]} 47... Kb5 {[%clk 0:01:00.6]} 48.
Re4 {[%clk 0:00:09]} 48... Rh2+ {[%clk 0:01:01.2]} 49. Kc3 {[%clk 0:00:10.2]}
49... Rh3+ {[%clk 0:01:02.5]} 50. Kc2 {[%clk 0:00:10.7]} 50... Rh2+ {[%clk
0:01:03.6]} 51. Kd3 {[%clk 0:00:11.2]} 51... Rh3+ {[%clk 0:00:57.7]} 52. Re3
{[%clk 0:00:11.7]} 52... Rh5 {[%clk 0:00:58.6]} 53. Kc3 {[%clk 0:00:12.9]} 53...
Rc5+ {[%clk 0:00:59.2]} 54. Kb2 {[%clk 0:00:13.7]} 54... Rh5 {[%clk 0:01:00.1]}
55. a4+ {[%clk 0:00:14]} 55... Kc5 {[%clk 0:00:59.6]} 56. Rc3+ {[%clk
0:00:14.5]} 56... Kb6 {[%clk 0:01:00.5]} 57. Rc4 {[%clk 0:00:14.3]} 57... Rh2+
{[%clk 0:01:01.4]} 58. Ka3 {[%clk 0:00:15.4]} 58... Rh1 {[%clk 0:01:02.5]} 59.
Rg4 {[%clk 0:00:15.8]} 59... Rh6 {[%clk 0:01:02.4]} 60. Rg5 {[%clk 0:00:16.1]}
60... Ka6 {[%clk 0:01:03.1]} 61. Kb2 {[%clk 0:00:16.4]} 61... Kb6 {[%clk
0:01:03.2]} 62. Kc3 {[%clk 0:00:17.5]} 62... Rc6+ {[%clk 0:01:03.8]} 63. Kd4
{[%clk 0:00:16.4]} 63... Rd6+ {[%clk 0:01:05]} 64. Rd5 {[%clk 0:00:16.9]} 64...
Rh6 {[%clk 0:01:06]} 65. Rb5+ {[%clk 0:00:17.7]} 65... Ka6 {[%clk 0:01:07.2]}
66. Rc5 {[%clk 0:00:16.4]} 66... Kb6 {[%clk 0:01:05.3]} 67. Rb5+ {[%clk
0:00:15.9]} 67... Ka6 {[%clk 0:01:06.6]} 68. Rd5 {[%clk 0:00:14.2]} 68... Kb6
{[%clk 0:01:06]} 69. Ke5 {[%clk 0:00:07.1]} 69... Rh5+ {[%clk 0:01:06]} 70. Ke4
{[%clk 0:00:08.2]} 70... Rh4+ {[%clk 0:01:06.8]} 71. Ke5 {[%clk 0:00:08.7]}
71... Rh5+ {[%clk 0:01:07.9]} 72. Kd4 {[%clk 0:00:09.6]} 72... Rh4+ {[%clk
0:01:08.2]} 73. Kd3 {[%clk 0:00:10.9]} 73... Rh3+ {[%clk 0:01:09.3]} 74. Kc4
{[%clk 0:00:12.2]} 74... Rh4+ {[%clk 0:01:10.4]} 75. Rd4 {[%clk 0:00:13.6]}
75... Rh6 {[%clk 0:01:11.4]} 76. Re4 {[%clk 0:00:12]} 76... Rg6 {[%clk
0:01:09.8]} 77. Kd5 {[%clk 0:00:12.9]} 77... Rg5+ {[%clk 0:00:49.9]} 78. Kc4
{[%clk 0:00:09.4]} 78... Rg6 {[%clk 0:00:49.3]} 79. Re5 {[%clk 0:00:08.9]} 79...
Rh6 {[%clk 0:00:45.3]} 80. Kd5 {[%clk 0:00:09]} 80... Rg6 {[%clk 0:00:31.8]} 81.
Re6+ {[%clk 0:00:09.5]} 81... Rxe6 {[%clk 0:00:32.6]} 82. Kxe6 {[%clk
0:00:10.8]} 82... Kc6 {[%clk 0:00:33.8]} 83. Ke7 {[%clk 0:00:11]} 83... Kc7
{[%clk 0:00:34.4]} 84. Ke6 {[%clk 0:00:11.3]} 84... Kc6 {[%clk 0:00:35.6]} 85.
Ke7 {[%clk 0:00:08.7]} 85... Kc7 {[%clk 0:00:36.8]} 86. Ke6 {[%clk 0:00:08.6]}
1/2-1/2

[Event "*** MasterClass Titled Tuesday Blitz"]
[Site "Chess.com"]
[Date "2017.12.12"]
[Round "5"]
[White "GameOverBro"]
[Black "pedromartinez91"]
[Result "0-1"]
[WhiteElo "2240"]
[BlackElo "2206"]
[TimeControl "180+2"]
[EndTime "14:09:47 PST"]
[Termination "pedromartinez91 won by resignation"]

1. e4 {[%clk 0:03:01.9]} 1... c5 {[%clk 0:03:00.8]} 2. Ne2 {[%clk 0:03:02.7]}
2... Nc6 {[%clk 0:03:01.7]} 3. Nbc3 {[%clk 0:03:03.5]} 3... g6 {[%clk
0:03:02.4]} 4. d4 {[%clk 0:03:04.6]} 4... cxd4 {[%clk 0:03:03.2]} 5. Nxd4 {[%clk
0:03:06.5]} 5... Bg7 {[%clk 0:03:04.6]} 6. Nde2 {[%clk 0:03:08]} 6... h5 {[%clk
0:03:02.2]} 7. Be3 {[%clk 0:02:57.4]} 7... h4 {[%clk 0:03:00.6]} 8. h3 {[%clk
0:02:57.1]} 8... Nf6 {[%clk 0:02:59.5]} 9. Qd2 {[%clk 0:02:46.8]} 9... d6 {[%clk
0:02:59]} 10. Nf4 {[%clk 0:02:46]} 10... Qa5 {[%clk 0:02:42.9]} 11. Bc4 {[%clk
0:02:36.9]} 11... Qe5 {[%clk 0:02:24.8]} 12. Nd3 {[%clk 0:02:28.4]} 12... Qh5
{[%clk 0:01:28.5]} 13. Nf4 {[%clk 0:02:20.7]} 13... Qe5 {[%clk 0:01:27.8]} 14.
f3 {[%clk 0:01:45.2]} 14... g5 {[%clk 0:01:21.2]} 15. Nd3 {[%clk 0:01:44.7]}
15... Qg3+ {[%clk 0:01:20.4]} 16. Kf1 {[%clk 0:01:27.7]} 16... Ne5 {[%clk
0:00:59.9]} 17. Bb5+ {[%clk 0:01:23.8]} 17... Kf8 {[%clk 0:00:50.4]} 18. Ne1
{[%clk 0:01:05.9]} 18... Be6 {[%clk 0:00:39.3]} 19. Ne2 {[%clk 0:01:01.4]} 19...
Nc4 {[%clk 0:00:39]} 20. Qd3 {[%clk 0:00:35.7]} 20... Nxe3+ {[%clk 0:00:38.8]}
21. Qxe3 {[%clk 0:00:34.2]} 21... Qe5 {[%clk 0:00:39.8]} 22. Nd4 {[%clk
0:00:30.6]} 22... Nd5 {[%clk 0:00:36]} 23. Nxe6+ {[%clk 0:00:29]} 23... fxe6
{[%clk 0:00:35.3]} 24. Qb3 {[%clk 0:00:28]} 24... Nf4 {[%clk 0:00:31.8]} 25. c3
{[%clk 0:00:26.5]} 25... Bf6 {[%clk 0:00:29]} 26. a4 {[%clk 0:00:22.8]} 26...
Kg7 {[%clk 0:00:29.6]} 27. a5 {[%clk 0:00:22.8]} 27... Rab8 {[%clk 0:00:27.5]}
28. Ra4 {[%clk 0:00:20.3]} 28... Rhc8 {[%clk 0:00:27.6]} 29. Nd3 {[%clk
0:00:20.3]} 29... Nxd3 {[%clk 0:00:27.9]} 30. Bxd3 {[%clk 0:00:22.2]} 30... Rc5
{[%clk 0:00:28]} 31. Qa3 {[%clk 0:00:21.4]} 31... Qf4 {[%clk 0:00:25.6]} 32. Ke2
{[%clk 0:00:20.9]} 32... Qg3 {[%clk 0:00:23.3]} 33. Rg1 {[%clk 0:00:21.9]} 33...
Qh2 {[%clk 0:00:23.5]} 34. Qa1 {[%clk 0:00:22.3]} 34... Be5 {[%clk 0:00:23.4]}
35. Qd1 {[%clk 0:00:20.1]} 35... Bf4 {[%clk 0:00:22.2]} 36. Bc4 {[%clk
0:00:20.9]} 36... Kf6 {[%clk 0:00:22]} 37. Ba2 {[%clk 0:00:21.4]} 37... Qg3
{[%clk 0:00:21.6]} 38. Qd4+ {[%clk 0:00:22.5]} 38... Re5 {[%clk 0:00:22.4]} 39.
Qf2 {[%clk 0:00:23.9]} 39... Qxf2+ {[%clk 0:00:23]} 40. Kxf2 {[%clk 0:00:25.8]}
40... Rc8 {[%clk 0:00:21.6]} 41. Rd1 {[%clk 0:00:26.4]} 41... Rc7 {[%clk
0:00:22.5]} 42. a6 {[%clk 0:00:27.2]} 42... b6 {[%clk 0:00:23.5]} 43. Rdd4
{[%clk 0:00:27.7]} 43... Rb5 {[%clk 0:00:24.6]} 44. Rab4 {[%clk 0:00:27.2]}
44... Ra5 {[%clk 0:00:24.3]} 45. Ra4 {[%clk 0:00:27.9]} 45... Rcc5 {[%clk
0:00:25.3]} 46. Bb1 {[%clk 0:00:24.8]} 46... Be5 {[%clk 0:00:26.1]} 47. Rdb4
{[%clk 0:00:24.2]} 47... Rxa4 {[%clk 0:00:26.4]} 48. Rxa4 {[%clk 0:00:25.7]}
48... Rb5 {[%clk 0:00:27.6]} 49. Ra2 {[%clk 0:00:24.5]} 49... Bxc3 {[%clk
0:00:28]} 50. Bd3 {[%clk 0:00:23.8]} 50... Rxb2+ {[%clk 0:00:28.8]} 51. Rxb2
{[%clk 0:00:24.8]} 51... Bxb2 {[%clk 0:00:30.7]} 52. Ke3 {[%clk 0:00:25.7]}
52... Ke5 {[%clk 0:00:31.8]} 53. Bb5 {[%clk 0:00:26.4]} 53... d5 {[%clk
0:00:32.7]} 54. Bd7 {[%clk 0:00:25.6]} 54... Ba3 {[%clk 0:00:33.6]} 55. Bb5
{[%clk 0:00:26.6]} 55... Bc5+ {[%clk 0:00:32.7]} 56. Ke2 {[%clk 0:00:26.9]}
56... Kd4 {[%clk 0:00:32.9]} 57. Bd7 {[%clk 0:00:26.5]} 57... Ke5 {[%clk
0:00:32.3]} 58. Kd3 {[%clk 0:00:26.3]} 58... Kd6 {[%clk 0:00:32.4]} 59. Bc8
{[%clk 0:00:26.9]} 59... Ke5 {[%clk 0:00:32.7]} 60. Bd7 {[%clk 0:00:27.8]} 60...
d4 {[%clk 0:00:27.8]} 61. Bb5 {[%clk 0:00:27.1]} 61... Kf4 {[%clk 0:00:28.7]}
62. Ke2 {[%clk 0:00:28.3]} 62... Kg3 {[%clk 0:00:27.7]} 63. Kf1 {[%clk
0:00:29.3]} 63... e5 {[%clk 0:00:28.3]} 64. Bc4 {[%clk 0:00:30.4]} 64... Kf4
{[%clk 0:00:28.5]} 65. Ke2 {[%clk 0:00:31.2]} 65... Bb4 {[%clk 0:00:28.9]} 66.
Bb5 {[%clk 0:00:30.4]} 66... Bc3 {[%clk 0:00:29.6]} 67. Bc4 {[%clk 0:00:31.5]}
67... Kg3 {[%clk 0:00:27.8]} 68. Kf1 {[%clk 0:00:31.8]} 68... Bd2 {[%clk
0:00:29.1]} 69. Bb5 {[%clk 0:00:31.8]} 69... Bf4 {[%clk 0:00:30.2]} 70. Bc4
{[%clk 0:00:32.7]} 70... Be3 {[%clk 0:00:20.7]} 71. Bb5 {[%clk 0:00:32.6]} 71...
Kf4 {[%clk 0:00:22.4]} 72. Ke2 {[%clk 0:00:33.1]} 72... g4 {[%clk 0:00:23]} 73.
hxg4 {[%clk 0:00:33.5]} 73... Kg5 {[%clk 0:00:24.3]} 74. Bd7 {[%clk 0:00:32.8]}
74... Kf4 {[%clk 0:00:25.2]} 75. Bb5 {[%clk 0:00:26.9]} 75... Bc1 {[%clk
0:00:25.8]} 76. Bd7 {[%clk 0:00:24.9]} 76... Kg3 {[%clk 0:00:24.7]} 77. Kd1
{[%clk 0:00:24.5]} 77... Bg5 {[%clk 0:00:23]} 78. Ke2 {[%clk 0:00:09.3]} 78...
Kxg2 {[%clk 0:00:23.1]} 79. f4 {[%clk 0:00:09.2]} 79... exf4 {[%clk 0:00:22.2]}
0-1